bitfinex-derivatives/quotes_SOLF0:USTF0_20241206
["timestamp","ask_amount","ask_price","bid_price","bid_amount"]
[1733482502102,2.1176,235.91,235.82,2.26]
[1733482502706,2.1176,235.91,235.87,2.1178]
[1733482503104,2.1176,235.91,235.82,2.26]
[1733482503105,2.1175,235.92,235.82,2.26]
[1733482503905,2.1175,235.92,235.88,2.1178]
[1733482504108,5.96304726,235.9,235.88,2.1178]
[1733482507307,1.3507,235.94,235.91,2.1175]
[1733482507607,7.31374726,235.94,235.86,5.96304726]
[1733482508010,5.96304726,235.92,235.9,2.1175]
[1733482509714,5.96304726,235.92,235.91,2.1175]
[1733482510308,5.96304726,235.92,235.84,5.96304726]
[1733482510508,5.96304726,235.92,235.9,2.1176]
[1733482510913,5.96304726,235.92,235.87,2.1179]
[1733482511110,5.96304726,235.88,235.87,2.1179]
[1733482513316,5.96304726,235.88,235.7,2.26]
[1733482513508,5.96304726,235.79,235.71,5.96304726]
[1733482514014,2.1184,235.82,235.76,2.1188]
[1733482515013,2.1185,235.81,235.76,2.1188]
[1733482515215,9.32578283,235.83,235.76,2.1188]
[1733482515412,9.32578283,235.83,235.75,2.119]
[1733482515613,2.1185,235.8,235.75,2.119]
[1733482517718,9.32578283,235.83,235.76,2.1189]
[1733482518214,2.1186,235.8,235.73,2.1191]
[1733482518422,2.1186,235.8,235.7,6.59133616]
[1733482518617,9.32578283,235.83,235.7,2.26]
[1733482519017,2.1187,235.79,235.74,2.119]
[1733482519617,2.1187,235.79,235.7,2.26]
[1733482519817,2.1185,235.8,235.75,2.1189]
[1733482520126,9.32578283,235.8,235.69,1.2658]
[1733482520315,9.32578283,235.8,235.7,2.26]
[1733482520717,9.32578283,235.8,235.72,2.1193]
[1733482521416,9.32578283,235.77,235.65,2.26]
[1733482521619,9.32578283,235.74,235.65,2.26]
[1733482521819,2.1194,235.71,235.67,2.1197]
[1733482522314,2.1194,235.71,235.65,4.3798]
[1733482522722,2.1195,235.69,235.58,13.5625909]
[1733482522917,9.32578283,235.71,235.65,2.1199]
[1733482523417,2.1195,235.7,235.59,2.26]
[1733482523623,2.1195,235.7,235.64,2.12]
[1733482524217,9.32578283,235.71,235.64,2.12]
[1733482525122,2.1196,235.68,235.64,2.12]
[1733482525524,9.32578283,235.71,235.64,2.12]
[1733482525723,3.4623,235.73,235.65,2.1199]
[1733482525924,1.3431,235.73,235.62,2.26]
[1733482526123,1.2661,235.74,235.62,2.26]
[1733482526424,1.2661,235.74,235.69,2.1194]
[1733482526720,9.32578283,235.77,235.68,2.26]
[1733482526926,11.44458283,235.77,235.7,2.1194]
[1733482527224,2.6542,235.79,235.68,2.26]
[1733482528122,2.1186,235.78,235.68,2.26]
[1733482528627,9.32578283,235.77,235.68,2.26]
[1733482528818,9.32578283,235.74,235.68,2.26]
[1733482529523,2.119,235.73,235.69,2.1194]
[1733482530921,2.1188,235.75,235.71,2.1192]
[1733482531530,11.44448283,235.77,235.68,2.26]
[1733482532517,11.44448283,235.77,235.7,2.1192]
[1733482532723,2.6542,235.79,235.68,2.26]
[1733482532724,3.4973,235.79,235.68,2.26]
[1733482533530,1.3788,235.79,235.68,2.26]
[1733482533725,2.1186,235.78,235.73,2.119]
[1733482534027,2.1186,235.78,235.73,4.379]
[1733482536428,1.3788,235.79,235.73,4.379]
[1733482536728,9.32578283,235.76,235.69,2.26]
[1733482536931,9.32578283,235.76,235.72,2.1191]
[1733482537127,2.1188,235.75,235.72,2.1191]
[1733482538130,9.32578283,235.76,235.7,2.1192]
[1733482538328,9.32578283,235.76,235.69,2.26]
[1733482540032,2.1187,235.77,235.69,2.26]
[1733482541830,2.1187,235.77,235.72,2.119]
[1733482543025,2.1187,235.77,235.69,2.26]
[1733482543831,2.1187,235.77,235.72,2.119]
[1733482544133,9.32578283,235.73,235.59,2.26]
[1733482544339,9.32578283,235.67,235.6,2.26]
[1733482545229,2.1197,235.65,235.61,2.1201]
[1733482545835,9.32578283,235.67,235.61,2.1201]
[1733482546035,2.1197,235.66,235.61,2.1201]
[1733482546633,2.1197,235.66,235.62,2.12]
[1733482547931,9.32578283,235.64,235.55,2.26]
[1733482548134,9.32578283,235.61,235.48,4.2782812]
[1733482548338,9.32578283,235.61,235.49,2.26]
[1733482548532,9.32578283,235.61,235.49,6.54676648]
[1733482548731,9.32578283,235.61,235.49,2.26]
[1733482548930,9.32578283,235.61,235.49,6.46403494]
[1733482549141,11.44598283,235.61,235.55,2.1206]
[1733482549439,11.44598283,235.61,235.49,6.46403494]
[1733482549440,9.32578283,235.61,235.54,2.26]
[1733482550135,9.32578283,235.64,235.54,2.26]
[1733482550543,11.99098283,235.67,235.54,2.26]
[1733482550733,2.1196,235.66,235.61,2.12]
[1733482552337,2.1196,235.66,235.62,2.12]
[1733482552534,10.68108283,235.67,235.59,2.26]
[1733482554547,2.1196,235.66,235.51,10.09075283]
[1733482554844,10.68108283,235.67,235.52,2.26]
[1733482555044,9.32578283,235.64,235.61,2.1201]
[1733482555343,9.32578283,235.64,235.6,2.26]
[1733482555543,9.32578283,235.64,235.58,2.26]
[1733482556347,11.44558283,235.64,235.6,2.1202]
[1733482556850,9.32578283,235.64,235.62,2.1199]
[1733482557049,9.32578283,235.64,235.58,2.26]
[1733482557650,1.3553,235.67,235.58,2.26]
[1733482557943,9.32578283,235.63,235.58,2.26]
[1733482559647,2.12,235.63,235.59,2.1203]
[1733482559847,9.32578283,235.63,235.58,2.26]
[1733482560244,2.1201,235.61,235.58,2.26]
[1733482560655,11.44578283,235.63,235.58,4.3803]
[1733482560851,9.32578283,235.63,235.58,4.3803]
[1733482561650,2.12,235.62,235.58,4.3803]
[1733482562655,2.1202,235.61,235.58,2.26]
[1733482562852,9.32578283,235.63,235.58,2.26]
[1733482563055,1.3553,235.67,235.58,2.26]
[1733482563253,9.32578283,235.69,235.58,2.26]
[1733482563454,9.32578283,235.69,235.64,2.1198]
[1733482563455,11.44518283,235.69,235.64,2.1198]
[1733482564654,9.32578283,235.68,235.64,2.1198]
[1733482564856,9.32578283,235.68,235.65,2.1197]
[1733482567661,2.1191,235.73,235.69,2.1193]
[1733482567857,9.32578283,235.74,235.63,2.26]
[1733482568060,9.32578283,235.71,235.63,2.26]
[1733482568258,9.32578283,235.68,235.63,2.26]
[1733482568461,9.32578283,235.68,235.59,2.26]
[1733482568762,9.32578283,235.68,235.56,1.2574]
[1733482568957,11.44528283,235.68,235.63,2.1199]
[1733482569257,9.32578283,235.68,235.63,2.1199]
[1733482569961,2.1196,235.67,235.63,2.1199]
[1733482570961,11.44558283,235.65,235.6,2.1201]
[1733482571354,11.44558283,235.65,235.58,2.26]
[1733482571555,11.44558283,235.65,235.61,2.12]
[1733482571556,9.32578283,235.65,235.61,2.12]
[1733482571963,9.32578283,235.65,235.58,2.26]
[1733482572263,1.3481,235.69,235.64,2.1198]
[1733482572464,9.32578283,235.67,235.58,2.26]
[1733482572660,11.44538283,235.67,235.62,2.1199]
[1733482572861,9.32578283,235.67,235.58,2.26]
[1733482573163,11.44538283,235.67,235.62,2.1199]
[1733482573365,9.32578283,235.67,235.58,2.26]
[1733482573561,9.32578283,235.64,235.53,0.713]
[1733482573864,9.32578283,235.64,235.54,2.26]
[1733482574266,2.1201,235.61,235.57,2.1204]
[1733482574564,9.32578283,235.64,235.54,2.26]
[1733482575067,2.12,235.62,235.58,2.1204]
[1733482575363,11.44578283,235.62,235.58,2.1204]
[1733482576661,9.32578283,235.62,235.54,2.26]
[1733482577462,11.44578283,235.62,235.58,2.1204]
[1733482578261,11.44578283,235.62,235.54,2.26]
[1733482578559,9.32578283,235.65,235.54,2.26]
[1733482578957,11.44548283,235.65,235.6,2.1201]
[1733482579465,1.3481,235.69,235.59,2.26]
[1733482579761,1.3481,235.69,235.6,2.26]
[1733482579966,11.44498283,235.71,235.67,2.1195]
[1733482580156,11.44498283,235.71,235.61,2.26]
[1733482580562,3.3806,235.7,235.66,2.1196]
[1733482580860,3.3806,235.7,235.61,2.26]
[1733482581266,3.3806,235.7,235.65,2.1197]
[1733482581567,3.3806,235.7,235.61,2.26]
[1733482581961,3.3806,235.7,235.6,2.1202]
[1733482582162,3.3806,235.7,235.61,2.26]
[1733482583665,3.3806,235.7,235.66,2.1196]
[1733482585158,9.32578283,235.75,235.66,2.26]
[1733482586268,2.1189,235.74,235.7,2.1193]
[1733482587072,9.32578283,235.75,235.66,2.26]
[1733482588069,5.97144772,235.73,235.66,2.26]
[1733482588769,5.97144772,235.73,235.72,2.1191]
[1733482591074,5.97144772,235.73,235.66,2.26]
[1733482591276,2.1188,235.75,235.71,2.1192]
[1733482592167,1.2511,235.76,235.72,2.1191]
[1733482592365,5.97144772,235.73,235.72,2.1191]
[1733482594968,3.3699,235.76,235.72,2.1191]
[1733482595274,1.2511,235.76,235.74,2.1189]
[1733482596376,1.3654,235.79,235.66,2.26]
[1733482596568,5.97144772,235.73,235.66,2.26]
[1733482598772,5.97144772,235.73,235.71,2.1191]
[1733482599171,5.97144772,235.73,235.66,2.26]
[1733482599369,5.97144772,235.73,235.68,2.1194]
[1733482599573,5.97144772,235.73,235.66,2.26]
[1733482599974,5.97144772,235.73,235.71,2.1191]
[1733482600678,5.97144772,235.73,235.72,2.1191]
[1733482602677,5.97144772,235.73,235.71,2.1192]
[1733482607978,5.97144772,235.73,235.72,2.1191]
[1733482615790,1.3654,235.79,235.66,8.23144772]
[1733482615992,5.97144772,235.77,235.75,2.1188]
[1733482621398,2.7434,235.83,235.72,8.21144772]
[1733482621596,5.97144772,235.81,235.72,8.21144772]
[1733482622700,5.97144772,235.81,235.78,2.1185]
[1733482623501,5.97144772,235.79,235.78,2.1185]
[1733482626197,2.1186,235.78,235.74,2.1189]
[1733482626405,5.97144772,235.75,235.72,2.24]
[1733482627297,5.97144772,235.75,235.73,2.1189]
[1733482627493,1.3634,235.82,235.72,2.24]
[1733482627697,5.97144772,235.8,235.72,8.21144772]
[1733482628401,8.08994772,235.8,235.76,2.1187]
[1733482628601,1.3634,235.82,235.72,8.21144772]
[1733482628803,5.97144772,235.8,235.72,8.21144772]
[1733482629004,5.97144772,235.8,235.78,2.1186]
[1733482632506,5.97144772,235.81,235.78,2.1186]
[1733482634004,2.118,235.85,235.81,2.1182]
[1733482634203,4.0082,235.96,235.82,2.24]
[1733482634408,26.98966555,235.95,235.82,2.24]
[1733482634606,2.1177,235.88,235.85,2.1179]
[1733482634908,4.0082,235.96,235.82,2.24]
[1733482635111,5.97144772,235.9,235.82,8.21144772]
[1733482635408,4.0082,235.96,235.82,8.21144772]
[1733482635704,5.97144772,235.9,235.82,8.21144772]
[1733482636418,5.97144772,235.88,235.74,1.3752]
[1733482636604,5.97144772,235.86,235.78,5.97144772]
[1733482636809,5.97144772,235.84,235.76,5.97144772]
[1733482637009,5.97144772,235.84,235.81,2.1182]
[1733482637212,5.97144772,235.84,235.81,4.3582]
[1733482639813,2.1179,235.86,235.82,2.1182]
[1733482640012,5.97144772,235.85,235.81,2.24]
[1733482641213,5.97144772,235.85,235.82,2.1182]
[1733482643313,8.08924772,235.87,235.82,2.1182]
[1733482643714,5.97144772,235.85,235.82,2.1182]
[1733482646921,5.97144772,235.83,235.78,2.24]
[1733482647114,5.97144772,235.81,235.78,2.24]
[1733482647614,1.3456,235.84,235.78,2.24]
[1733482647830,5.97144772,235.81,235.78,4.3585]
[1733482649319,5.97144772,235.81,235.78,2.24]
[1733482650214,5.97144772,235.81,235.78,4.3585]
[1733482650811,5.97144772,235.81,235.78,2.1185]
[1733482651513,8.08974772,235.81,235.77,2.1186]
[1733482652418,2.1185,235.8,235.76,2.24]
[1733482652618,5.97144772,235.79,235.76,2.24]
[1733482653419,8.09004772,235.77,235.76,2.24]
[1733482654825,5.97144772,235.77,235.72,2.24]
[1733482655025,5.97144772,235.77,235.73,2.1189]
[1733482657925,5.97144772,235.77,235.7,2.24]
[1733482659230,5.97144772,235.77,235.73,2.1189]
[1733482660433,2.1183,235.81,235.77,2.1186]
[1733482660730,5.97144772,235.81,235.75,2.24]
[1733482661235,5.97144772,235.81,235.78,2.1185]
[1733482662530,5.97144772,235.81,235.75,2.24]
[1733482662733,2.1182,235.82,235.79,2.1185]
[1733482664733,5.97144772,235.81,235.75,2.24]
[1733482665029,8.08974772,235.81,235.78,2.1185]
[1733482665634,5.97144772,235.81,235.79,2.1185]
[1733482665834,2.1182,235.82,235.79,2.1185]
[1733482666034,5.97144772,235.8,235.79,2.1185]
[1733482666739,5.97144772,235.81,235.79,2.1185]
[1733482666940,1.3456,235.84,235.75,2.24]
[1733482667145,8.08954772,235.83,235.8,2.1184]
[1733482667444,5.97144772,235.83,235.75,8.21144772]
[1733482667943,5.97144772,235.83,235.81,2.1183]
[1733482668342,5.97144772,235.83,235.75,8.21144772]
[1733482669144,8.08954772,235.83,235.75,8.21144772]
[1733482669341,1.3456,235.84,235.75,8.21144772]
[1733482670144,1.3456,235.84,235.81,2.1182]
[1733482671048,1.3456,235.84,235.82,2.1182]
[1733482671241,5.97144772,235.85,235.82,2.1182]
[1733482672050,5.97144772,235.83,235.82,2.1182]
[1733482676148,8.08934772,235.85,235.82,2.1182]
[1733482676650,2.1179,235.85,235.82,2.1182]
[1733482676845,8.08934772,235.85,235.82,2.1182]
[1733482677245,8.08964772,235.83,235.8,2.24]
[1733482677549,5.97144772,235.83,235.8,2.24]
[1733482677946,5.97144772,235.83,235.8,4.3584]
[1733482678948,8.08964772,235.83,235.8,4.3584]
[1733482680546,2.1182,235.82,235.8,4.3584]
[1733482680850,1.2753,235.88,235.76,4.3587]
[1733482680851,5.97144772,235.81,235.76,4.3587]
[1733482682146,5.97144772,235.79,235.76,2.24]
[1733482682350,5.97144772,235.79,235.74,4.3589]
[1733482682746,2.1186,235.77,235.74,2.24]
[1733482683245,2.1186,235.78,235.74,4.3589]
[1733482684251,8.08994772,235.79,235.75,2.1187]
[1733482685552,2.1186,235.78,235.75,2.1187]
[1733482685848,5.97144772,235.79,235.75,2.1187]
[1733482686453,5.97144772,235.77,235.73,2.119]
[1733482686755,2.1186,235.78,235.7,0.29761]
[1733482686756,5.97144772,235.75,235.7,2.53761]
[1733482687753,8.09034772,235.75,235.71,2.1191]
[1733482689156,5.97144772,235.75,235.72,2.1191]
[1733482692064,1.3197,235.78,235.7,6.26905772]
[1733482692754,3.4383,235.78,235.7,6.26905772]
[1733482693559,5.97144772,235.77,235.7,0.29761]
[1733482693751,3.4383,235.78,235.72,2.1191]
[1733482693752,5.97144772,235.75,235.72,2.1191]
[1733482696662,2.1189,235.74,235.7,4.65681]
[1733482696861,1.3197,235.78,235.7,0.29761]
[1733482696862,5.97144772,235.73,235.7,0.29761]
[1733482697365,8.09054772,235.73,235.7,0.29761]
[1733482697563,5.97144772,235.73,235.7,0.29761]
[1733482699165,5.97144772,235.73,235.7,2.41681]
[1733482699767,8.09044772,235.73,235.7,0.29761]
[1733482700961,5.97144772,235.73,235.7,2.41691]
[1733482701368,5.97144772,235.73,235.7,2.1193]
[1733482701565,8.09044772,235.73,235.69,2.24]
[1733482701862,8.09044772,235.73,235.62,31.1418716]
[1733482701863,5.97144772,235.71,235.66,2.24]
[1733482702169,5.97144772,235.69,235.66,2.24]
[1733482703964,5.97144772,235.71,235.66,2.24]
[1733482704662,8.09064772,235.71,235.67,2.1195]
[1733482705564,8.09064772,235.71,235.66,2.24]
[1733482705868,8.09064772,235.71,235.66,4.3596]
[1733482706666,5.97144772,235.67,235.64,2.1197]
[1733482706870,5.97144772,235.67,235.61,2.24]
[1733482707063,1.3628,235.7,235.64,5.97144772]
[1733482707665,2.24,235.78,235.64,5.97144772]
[1733482707865,2.119,235.74,235.66,5.97144772]
[1733482708168,8.09044772,235.74,235.67,2.24]
[1733482708671,9.45294772,235.77,235.68,5.97144772]
[1733482709967,7.33424772,235.77,235.68,5.97144772]
[1733482710163,2.1188,235.76,235.68,5.97144772]
[1733482710873,5.97144772,235.75,235.72,2.1191]
[1733482714878,5.97144772,235.73,235.72,2.1191]
[1733482715073,8.09044772,235.73,235.69,2.1193]
[1733482715269,5.97144772,235.73,235.69,2.1193]
[1733482715771,8.09054772,235.73,235.69,2.1193]
[1733482716078,5.97144772,235.71,235.69,2.1193]
[1733482716474,1.3628,235.77,235.67,4.3595]
[1733482716475,2.1192,235.72,235.67,4.3595]
[1733482716777,5.97144772,235.73,235.67,2.24]
[1733482717575,2.1191,235.72,235.68,2.1195]
[1733482718778,8.09054772,235.72,235.68,2.1195]
[1733482720781,5.97144772,235.7,235.67,4.3595]
[1733482722078,1.3628,235.77,235.67,2.24]
[1733482722274,5.97144772,235.75,235.67,8.21144772]
[1733482722576,2.119,235.74,235.67,8.21144772]
[1733482722773,2.119,235.74,235.69,2.1193]
[1733482722977,2.119,235.74,235.67,2.24]
[1733482723275,1.3628,235.77,235.69,5.97144772]
[1733482723471,1.3628,235.77,235.67,2.24]
[1733482723472,1.3628,235.77,235.71,5.97144772]
[1733482723778,1.3628,235.77,235.74,2.1189]
[1733482724277,5.97144772,235.76,235.73,2.119]
[1733482726173,8.09024772,235.76,235.72,4.3591]
[1733482726372,5.97144772,235.74,235.72,4.3591]
[1733482727982,5.97144772,235.74,235.73,2.119]
[1733482734583,5.97144772,235.76,235.73,2.119]
[1733482734885,5.97144772,235.74,235.73,2.119]
[1733482736089,5.97144772,235.74,235.72,4.3591]
[1733482736886,5.97144772,235.74,235.73,2.119]
[1733482737878,5.97144772,235.76,235.73,2.119]
[1733482738582,8.09024772,235.76,235.72,4.3591]
[1733482738980,1.374,235.83,235.73,5.97144772]
[1733482739184,5.97144772,235.82,235.79,2.1184]
[1733482739782,5.97144772,235.82,235.78,4.3585]
[1733482740387,3.4922,235.83,235.78,4.3585]
[1733482740388,5.97144772,235.8,235.78,4.3585]
[1733482741883,5.97144772,235.8,235.78,2.1185]
[1733482743493,5.97144772,235.8,235.77,2.24]
[1733482743886,2.1184,235.81,235.77,2.24]
[1733482743887,5.97144772,235.78,235.77,2.24]
[1733482744491,5.97144772,235.78,235.77,4.3586]
[1733482745490,5.97144772,235.78,235.77,2.1186]
[1733482747791,5.97144772,235.8,235.78,2.1185]
[1733482752095,2.1182,235.82,235.78,2.1185]
[1733482752291,5.97144772,235.79,235.78,2.1185]
[1733482752485,1.2754,236.02,235.78,50.07144772]
[1733482752695,5.97144772,236.01,235.91,5.97144772]
[1733482752994,5.97144772,236.01,235.94,2.117]
[1733482753796,8.08794772,236.01,235.92,2.1172]
[1733482753997,5.97144772,236.01,235.93,2.22]
[1733482754290,8.08814772,235.99,235.91,2.1173]
[1733482754693,5.97144772,235.99,235.92,2.22]
[1733482755693,5.97144772,235.99,235.93,2.1172]
[1733482757889,1.2754,236.02,235.95,5.97144772]
[1733482758096,1.3186,236.06,235.95,5.97144772]
[1733482758298,5.97144772,236.04,235.95,5.97144772]
[1733482759495,8.08774772,236.04,235.97,5.97144772]
[1733482759694,2.1163,236.04,235.98,2.22]
[1733482760089,2.1163,236.04,235.98,4.3367]
[1733482760296,3.4347,236.06,235.99,5.97144772]
[1733482760504,3.4347,236.06,236.01,5.97144772]
[1733482761396,3.4347,236.06,236.01,8.08784772]
[1733482763097,3.4347,236.06,236.02,2.1164]
[1733482763302,1.3186,236.06,236.03,2.22]
[1733482764505,2.6602,236.15,236.03,8.19144772]
[1733482764803,5.97144772,236.12,236.03,8.19144772]
[1733482765102,5.97144772,236.08,236.03,2.22]
[1733482765396,1.2907,236.14,236.04,2.22]
[1733482765397,5.97144772,236.06,236.04,2.22]
[1733482766199,5.97144772,236.06,236.05,2.22]
[1733482766703,5.97144772,236.06,236.01,2.1165]
[1733482766899,5.97144772,236.02,235.92,5.97144772]
[1733482767106,5.97144772,236.0,235.93,2.22]
[1733482768101,5.97144772,236.0,235.95,2.117]
[1733482769203,2.1166,236.01,235.95,2.117]
[1733482770105,5.97144772,236.02,235.95,2.117]
[1733482770411,2.1166,236.0,235.95,2.117]
[1733482770709,2.1166,236.0,235.96,2.22]
[1733482771907,5.97144772,235.98,235.86,1.3736]
[1733482772112,2.1171,235.94,235.88,5.97144772]
[1733482772304,5.97144772,235.96,235.88,5.97144772]
[1733482772505,5.97144772,235.96,235.89,2.1175]
[1733482772704,5.97144772,235.96,235.88,5.97144772]
[1733482772705,2.117,235.95,235.88,5.97144772]
[1733482773310,2.1173,235.93,235.89,2.22]
[1733482773609,5.97144772,235.96,235.9,2.22]
[1733482774003,5.97144772,235.94,235.9,2.22]
[1733482774712,5.97144772,235.94,235.79,45.4549]
[1733482775013,5.97144772,235.94,235.85,8.08934772]
[1733482775215,5.97144772,235.94,235.86,2.22]
[1733482775419,2.1174,235.91,235.86,2.22]
[1733482775611,5.97144772,235.94,235.85,8.08934772]
[1733482775916,5.97144772,235.94,235.86,2.22]
[1733482776313,2.1175,235.91,235.86,2.22]
[1733482776515,5.97144772,235.92,235.8,1.356]
[1733482776716,5.97144772,235.9,235.81,8.19144772]
[1733482777216,5.97144772,235.9,235.82,4.3382]
[1733482777920,8.08894772,235.9,235.83,2.118]
[1733482778213,8.08894772,235.9,235.83,8.08944772]
[1733482778616,8.08894772,235.9,235.84,2.118]
[1733482778811,2.1175,235.9,235.84,2.118]
[1733482779819,2.1176,235.89,235.84,2.118]
[1733482781712,2.1176,235.89,235.85,2.1179]
[1733482784019,2.1177,235.88,235.84,2.118]
[1733482785225,2.1177,235.88,235.85,2.22]
[1733482786722,2.1177,235.88,235.85,4.3379]
[1733482787224,2.1176,235.9,235.86,2.1178]
[1733482788024,5.97144772,235.92,235.86,2.1178]
[1733482788228,2.1176,235.89,235.86,2.1178]
[1733482788525,5.97144772,235.9,235.85,2.22]
[1733482790024,2.1177,235.88,235.84,2.1179]
[1733482794224,2.1177,235.88,235.83,2.22]
[1733482794225,2.1176,235.89,235.85,2.1179]
[1733482794632,5.97144772,235.91,235.85,2.1179]
[1733482794831,2.1177,235.88,235.85,2.1179]
[1733482797034,2.1177,235.88,235.84,2.118]
[1733482798135,2.1177,235.88,235.85,2.1179]
[1733482802235,2.1174,235.91,235.88,2.1176]
[1733482802629,2.1174,235.91,235.88,4.3376]
[1733482803033,2.1175,235.9,235.88,4.3376]
[1733482803230,2.1175,235.9,235.88,2.22]
[1733482808334,2.1176,235.89,235.88,2.22]
[1733482813244,1.357,235.96,235.88,2.22]
[1733482813537,7.29784772,235.97,235.9,2.1175]
[1733482814340,2.117,235.95,235.9,2.1175]
[1733482814637,7.29784772,235.97,235.9,2.1175]
[1733482815237,2.117,235.95,235.9,2.1175]
[1733482815440,7.29784772,235.97,235.9,2.1175]
[1733482815942,2.1173,235.93,235.9,2.1175]
[1733482818943,2.1173,235.93,235.88,4.3376]
[1733482819342,2.1173,235.93,235.88,2.22]
[1733482821743,2.1171,235.94,235.9,2.1175]
[1733482822746,2.1172,235.93,235.89,2.1176]
[1733482823045,5.97144772,235.96,235.88,2.22]
[1733482823448,2.1172,235.94,235.9,2.1175]
[1733482823944,5.97144772,235.96,235.9,2.1175]
[1733482824547,2.1172,235.94,235.9,2.1175]
[1733482827441,5.97144772,235.94,235.82,2.1182]
[1733482827642,5.97144772,235.92,235.83,2.22]
[1733482827839,5.97144772,235.9,235.77,4.25048822]
[1733482828050,2.1177,235.88,235.84,2.1179]
[1733482828258,2.1177,235.88,235.85,2.22]
[1733482828947,2.1179,235.86,235.84,2.22]
[1733482829247,5.97144772,235.85,235.79,2.22]
[1733482829546,5.97144772,235.85,235.8,2.1184]
[1733482829849,5.97144772,235.85,235.79,2.22]
[1733482830052,2.1181,235.83,235.79,2.22]
[1733482830941,2.1181,235.84,235.79,4.3384]
[1733482831753,2.1181,235.83,235.79,4.3384]
[1733482832851,2.1183,235.82,235.79,2.22]
[1733482833051,2.1183,235.82,235.77,2.22]
[1733482833052,5.97144772,235.82,235.77,2.22]
[1733482833248,2.22,235.88,235.77,2.22]
[1733482833450,2.1182,235.82,235.77,4.3386]
[1733482833848,1.3096,235.87,235.77,4.3386]
[1733482834153,2.1183,235.82,235.78,2.1186]
[1733482834851,5.97144772,235.83,235.78,2.1186]
[1733482835644,1.3096,235.87,235.78,5.97144772]
[1733482835847,1.3772,235.92,235.82,5.97144772]
[1733482836053,5.97144772,235.9,235.83,2.22]
[1733482836250,1.3772,235.92,235.84,5.97144772]
[1733482836450,7.34864772,235.92,235.84,5.97144772]
[1733482836751,2.1175,235.9,235.85,2.1179]
[1733482836945,16.43344815,236.06,235.86,5.97144772]
[1733482837146,5.97144772,235.96,235.89,5.97144772]
[1733482837352,3.953,236.05,235.9,2.22]
[1733482837555,5.97144772,235.96,235.9,2.22]
[1733482837749,5.97144772,235.94,235.9,2.22]
[1733482837951,5.97144772,235.92,235.9,2.22]
[1733482838149,2.22,235.99,235.86,2.22]
[1733482838347,5.97144772,235.88,235.81,5.97144772]
[1733482838547,5.97144772,235.88,235.8,5.97144772]
[1733482838746,2.22,235.98,235.75,1.2757]
[1733482838747,5.97144772,235.86,235.75,1.2757]
[1733482838947,5.97144772,235.83,235.76,2.22]
[1733482839448,5.97144772,235.83,235.77,2.22]
[1733482839655,4.2333,236.0,235.76,2.22]
[1733482839851,2.1175,235.91,235.84,5.97144772]
[1733482840155,3.953,236.05,235.9,5.97144772]
[1733482840354,3.953,236.05,235.91,2.22]
[1733482840355,19.13581084,236.04,235.91,2.22]
[1733482840652,19.13581084,236.03,235.92,5.97144772]
[1733482840855,3.953,236.05,235.94,5.97144772]
[1733482841056,3.953,236.05,235.97,2.1168]
[1733482841057,5.97144772,236.04,235.97,2.1168]
[1733482841251,5.97144772,236.0,235.83,2.6119]
[1733482841456,5.97144772,235.98,235.91,5.97144772]
[1733482841659,5.97144772,235.98,235.92,2.22]
[1733482841955,9.31029891,236.02,235.93,2.22]
[1733482842155,9.31029891,236.02,235.87,9.31029891]
[1733482842554,9.31029891,235.99,235.84,9.31029891]
[1733482842852,9.31029891,235.96,235.83,2.6119]
[1733482843352,9.31029891,235.96,235.84,2.22]
[1733482843353,2.1175,235.91,235.84,2.22]
[1733482843549,9.31029891,235.96,235.85,2.22]
[1733482843751,9.31029891,235.99,235.85,2.22]
[1733482843955,8.2244299,235.98,235.85,2.22]
[1733482844156,9.31029891,235.96,235.85,2.22]